bitfinex/quotes_SOLUSD_20250520
["timestamp","ask_amount","ask_price","bid_price","bid_amount"]
[1747710248923,19.51062464,170.01,169.95,26.0]
[1747710249120,19.51062464,170.0,169.95,26.0]
[1747710250624,5.88269898,169.99,169.95,26.0]
[1747710251728,25.39297758,170.0,169.95,26.0]
[1747710252027,5.88235294,170.0,169.95,26.0]
[1747710252827,5.88235294,170.0,169.94,17.64]
[1747710252828,19.51062464,169.98,169.92,19.197]
[1747710253011,19.51062464,169.98,169.92,17.64]
[1747710253332,19.51062464,169.97,169.92,17.64]
[1747710253706,5.88373734,169.96,169.92,26.0]
[1747710255528,19.51062464,169.99,169.92,26.0]
[1747710255727,40.09885993,170.0,169.92,26.0]
[1747710256527,40.09885993,170.0,169.92,31.88508732]
[1747710256727,5.88235294,170.0,169.93,0.28432314]
[1747710256917,5.88235294,170.0,169.94,6.1632]
[1747710257530,20.58498521,170.03,169.94,12.04759388]
[1747710257928,20.58498521,170.03,169.95,1.80262314]
[1747710258130,20.58498521,170.03,169.96,17.64]
[1747710258332,5.88131506,170.03,169.97,0.28432314]
[1747710258623,5.88131506,170.03,169.99,26.0]
[1747710259616,34.21182542,170.06,169.99,26.0]
[1747710259617,5.88062334,170.05,169.99,26.0]
[1747710261234,5.88027754,170.06,169.99,26.0]
[1747710262034,19.51062464,170.05,169.99,26.0]
[1747710262445,20.58097141,170.06,169.99,26.0]
[1747710262730,5.88027754,170.06,170.01,26.0]
[1747710262946,5.87958607,170.08,169.99,5.88267984]
[1747710263122,5.87889476,170.1,170.03,1.51]
[1747710263431,5.8778581,170.13,170.05,31.88060712]
[1747710263737,5.8778581,170.13,170.07,26.0]
[1747710263936,14.69325957,170.15,170.07,26.0]
[1747710263937,5.8771672,170.15,170.07,26.0]
[1747710264236,5.8771672,170.15,170.08,26.28432314]
[1747710265440,20.56677679,170.18,170.09,5.8792404]
[1747710265637,5.87613115,170.18,170.12,26.0]
[1747710265819,5.87544065,170.2,170.14,26.0]
[1747710266221,5.87475032,170.22,170.15,0.28432314]
[1747710266441,5.87475032,170.22,170.16,26.0]
[1747710266739,8.95636758,170.24,170.17,0.28432314]
[1747710266922,34.34125251,170.24,170.16,26.0]
[1747710267126,14.83062787,170.24,170.16,26.0]
[1747710267325,14.83062787,170.24,170.17,0.28432314]
[1747710267528,5.87302519,170.27,170.21,26.0]
[1747710270143,19.51062464,170.22,170.08,8.38751056]
[1747710270335,19.51062464,170.09,170.08,8.38751056]
[1747710270838,5.87958607,170.08,169.97,5.88332537]
[1747710271045,25.39021071,170.08,169.97,5.88332537]
[1747710271228,25.39021071,170.08,169.98,18.933972]
[1747710271425,25.39021071,170.08,169.98,0.28432314]
[1747710271652,19.51062464,170.07,169.97,20.62]
[1747710271834,19.51062464,170.07,170.0,26.0]
[1747710272328,20.57855126,170.08,169.97,38.24]
[1747710272329,19.51062464,170.05,169.97,38.24]
[1747710272646,19.51062464,170.06,169.97,64.24]
[1747710272847,5.88062334,170.05,169.97,38.24]
[1747710273235,5.88062334,170.05,169.97,64.24]
[1747710273431,5.88062334,170.05,169.97,70.12338537]
[1747710273823,5.88062334,170.05,169.98,0.14216157]
[1747710274023,5.88062334,170.05,169.98,0.28432314]
[1747710274538,19.51062464,170.04,169.98,0.28432314]
[1747710274741,19.51062464,170.03,169.94,18.64964886]
[1747710274944,34.212183,170.05,169.94,36.26964886]
[1747710275138,34.212183,170.05,169.95,26.0]
[1747710275346,34.212183,170.05,169.96,0.14216157]
[1747710275547,5.87993179,170.07,169.98,0.28432314]
[1747710275728,5.87993179,170.07,169.98,26.28432314]
[1747710275927,19.51062464,170.06,169.98,26.28432314]
[1747710276249,5.87993179,170.07,169.98,26.28432314]
[1747710276451,25.39055643,170.07,169.98,26.28432314]
[1747710276846,25.39055643,170.07,169.98,43.87432314]
[1747710277048,25.39055643,170.07,169.98,32.16735078]
[1747710277459,5.87993179,170.07,170.01,26.0]
[1747710277758,20.56408923,170.2,170.06,26.28432314]
[1747710277936,40.07471387,170.2,170.07,26.0]
[1747710278136,40.07471387,170.2,170.11,26.0]
[1747710278453,5.87544065,170.2,170.15,25.82935019]
[1747710278958,25.38502985,170.23,170.14,0.28432314]
[1747710279348,5.87440521,170.23,170.14,0.28432314]
[1747710280153,5.87440521,170.23,170.14,6.16175255]
[1747710280351,38.15607992,170.23,170.17,26.0]
[1747710282142,5.87371512,170.25,170.17,26.0]
[1747710282348,32.28167471,170.23,170.17,26.0]
[1747710282657,32.28167471,170.23,170.16,26.0]
[1747710282858,20.55800293,170.25,170.16,26.0]
[1747710282859,32.28167471,170.22,170.16,26.0]
[1747710283153,32.28167471,170.23,170.16,26.0]
[1747710283878,20.55800293,170.25,170.16,26.0]
[1747710284042,32.28167471,170.23,170.16,26.0]
[1747710284242,5.87475032,170.22,170.16,26.0]
[1747710285242,5.87475032,170.22,170.17,0.28432314]
[1747710285562,50.93132357,170.18,169.96,11.599]
[1747710285870,32.28167471,170.15,170.01,18.64964886]
[1747710286049,32.28167471,170.16,170.01,40.14964886]
[1747710286252,5.8771672,170.15,170.01,40.14964886]
[1747710287339,14.69119365,170.17,170.01,60.73667315]
[1747710287563,46.97286836,170.17,170.08,26.0]
[1747710287747,32.28167471,170.15,170.08,43.62]
[1747710288458,32.28167471,170.16,170.08,43.62]
[1747710288646,32.28167471,170.14,170.08,43.62]
[1747710288845,5.8778581,170.13,170.08,43.62]
[1747710289046,20.57250337,170.13,170.08,43.62]
[1747710290066,52.85417808,170.13,170.08,43.62]
[1747710290441,20.57250337,170.13,170.08,43.62]
[1747710290970,52.85417808,170.13,170.08,43.62]
[1747710291167,20.57250337,170.13,170.08,43.62]
[1747710291466,52.85417808,170.13,170.06,26.0]
[1747710291651,20.57250337,170.13,170.08,26.0]
[1747710292165,52.85417808,170.13,170.08,26.0]
[1747710292550,20.57250337,170.13,170.08,26.0]
[1747710292775,18.64964886,170.17,170.08,26.0]
[1747710292949,32.28167471,170.13,170.06,26.0]
[1747710293147,32.28167471,170.13,170.05,0.28432314]
[1747710293148,32.28167471,170.13,170.08,26.0]
[1747710294547,32.28167471,170.14,170.08,26.0]
[1747710295362,5.8778581,170.13,170.08,26.0]
[1747710296481,14.69392959,170.14,170.08,26.0]
[1747710296774,38.15884191,170.15,170.08,26.0]
[1747710297771,52.85175992,170.15,170.08,26.0]
[1747710298571,32.28167471,170.13,170.08,26.0]
[1747710298886,20.57008521,170.15,170.1,26.0]
[1747710299066,5.8771672,170.15,170.1,26.0]
[1747710301274,6.5848,170.28,170.12,26.0]
[1747710301570,21.8660622,170.26,170.18,26.0]
[1747710301760,20.55558817,170.27,170.19,17.62]
[1747710302276,5.87302519,170.27,170.22,26.0]
[1747710302781,21.8660622,170.26,170.22,26.0]
[1747710302952,21.8660622,170.25,170.22,26.0]
[1747710303150,5.87302519,170.27,170.19,17.62]
[1747710303376,21.8660622,170.22,170.19,17.62]
[1747710303552,21.8660622,170.21,170.19,17.62]
[1747710303755,21.8660622,170.2,170.15,26.0]
[1747710303959,21.8660622,170.19,170.15,43.62]
[1747710304673,5.87613115,170.18,170.15,43.62]
[1747710305391,21.8660622,170.17,170.15,43.62]
[1747710305589,21.8660622,170.17,170.12,0.14216157]
[1747710305879,5.87613115,170.18,170.14,26.0]
[1747710305880,21.8660622,170.15,170.14,26.0]
[1747710306069,21.8660622,170.15,170.11,17.62]
[1747710306381,21.8660622,170.15,170.13,26.0]
[1747710306582,21.8660622,170.16,170.13,26.0]
[1747710306789,5.8771672,170.15,170.13,26.0]
[1747710306956,5.87647646,170.17,170.13,26.0]
[1747710307557,5.87647646,170.17,170.12,26.0]
[1747710308079,5.87578588,170.19,170.13,26.0]
[1747710308466,27.74184808,170.19,170.13,26.0]
[1747710309463,27.74184808,170.19,170.11,5.87840618]
[1747710309970,5.87578588,170.19,170.14,26.0]
[1747710310175,14.6847261,170.25,170.14,26.0]
[1747710310353,21.8660622,170.23,170.14,26.0]
[1747710310769,14.6847261,170.25,170.14,26.0]
[1747710310966,5.87440521,170.23,170.18,26.0]
[1747710311172,5.87337013,170.26,170.2,26.0]
[1747710311564,21.8660622,170.23,170.17,8.2347]
[1747710311769,21.8660622,170.22,170.17,26.0]
[1747710312084,20.55679547,170.26,170.17,26.0]
[1747710312486,21.8660622,170.24,170.18,26.0]
[1747710312794,21.8660622,170.25,170.18,26.0]
[1747710312976,20.55679547,170.26,170.18,26.0]
[1747710312977,21.8660622,170.26,170.18,31.87594648]
[1747710313178,20.55359621,170.29,170.18,31.87594648]
[1747710313383,21.8660622,170.26,170.18,31.87594648]
[1747710313572,21.8660622,170.26,170.18,26.0]
[1747710313773,20.55359621,170.29,170.19,0.28432314]
[1747710313973,21.8660622,170.27,170.19,0.28432314]
[1747710314986,5.87337013,170.26,170.19,26.28432314]
[1747710315483,21.8660622,170.28,170.22,26.0]
[1747710315683,21.8660622,170.26,170.22,26.0]
[1747710315876,21.8660622,170.25,170.22,26.0]
[1747710316203,21.8660622,170.26,170.2,26.0]
[1747710316503,21.8660622,170.25,170.2,26.0]
[1747710316787,27.73977732,170.25,170.2,26.0]
[1747710316993,21.8660622,170.23,170.16,0.28432314]
[1747710317290,21.8660622,170.24,170.15,43.62]
[1747710317489,21.8660622,170.23,170.19,26.0]
[1747710317796,20.55800293,170.25,170.16,26.14216157]
[1747710318089,21.8660622,170.24,170.16,26.14216157]
[1747710318597,27.73977732,170.25,170.17,0.14216157]
[1747710318891,21.8660622,170.25,170.2,26.0]
[1747710320293,20.55447147,170.28,170.2,26.0]
[1747710320495,21.8660622,170.27,170.2,26.0]
[1747710320792,21.8660622,170.26,170.2,26.0]
[1747710321195,5.87371512,170.25,170.18,31.87600198]
[1747710321888,5.87371512,170.25,170.2,26.0]
[1747710322694,5.87371512,170.25,170.18,5.87609429]
[1747710322988,5.87371512,170.25,170.21,26.0]
[1747710323371,5.8719906,170.3,170.22,3.37130906]
[1747710323570,21.8660622,170.29,170.22,3.37130906]
[1747710323780,21.8660622,170.28,170.23,26.0]
[1747710325097,20.55196711,170.3,170.24,3.37130906]
[1747710325291,5.87302519,170.27,170.24,3.37130906]
[1747710325993,5.87302519,170.27,170.21,31.87507751]
[1747710326590,5.87302519,170.27,170.22,17.62]
[1747710326793,21.8660622,170.26,170.22,17.62]
[1747710327003,21.8660622,170.25,170.22,17.62]
[1747710327169,20.55558817,170.27,170.22,17.62]
[1747710327375,5.87302519,170.27,170.22,43.62]
[1747710329099,27.73908739,170.27,170.22,43.62]
[1747710329682,21.8660622,170.24,170.15,8.4202478]
[1747710330002,21.8660622,170.23,170.19,26.0]
[1747710331198,21.8660622,170.24,170.19,26.0]
[1747710331373,21.8660622,170.25,170.19,26.0]
[1747710331794,5.87406015,170.24,170.19,26.0]
[1747710333594,5.87337013,170.26,170.19,26.0]
[1747710333793,5.87302519,170.27,170.21,26.0]
[1747710336395,27.73908739,170.27,170.23,26.0]
[1747710336603,5.87302519,170.27,170.23,43.62]
[1747710338201,5.87233542,170.29,170.23,43.62]
[1747710338388,5.87233542,170.29,170.24,21.36]
[1747710338782,21.8660622,170.32,170.24,21.36]
[1747710338783,5.87130108,170.32,170.27,26.0]
[1747710339698,27.73632929,170.35,170.27,26.0]
[1747710341006,5.87026709,170.35,170.28,26.28432314]
[1747710341386,5.87026709,170.35,170.29,1.6053]
[1747710341588,5.87026709,170.35,170.31,26.0]
[1747710342579,14.67433629,170.37,170.31,26.0]
[1747710343000,21.8660622,170.36,170.31,26.0]
[1747710343897,14.67433629,170.37,170.31,26.0]
[1747710344098,36.54039849,170.37,170.31,26.0]
[1747710344302,21.8660622,170.36,170.31,26.0]
[1747710345014,5.86888901,170.39,170.33,26.0]
[1747710345216,4.80802581,170.46,170.33,26.0]
[1747710345217,5.86751158,170.43,170.33,26.0]
[1747710345510,21.8660622,170.41,170.33,26.0]
[1747710345682,5.86751158,170.43,170.33,26.0]
[1747710345887,21.8660622,170.42,170.34,0.28432314]
[1747710346086,5.86751158,170.43,170.34,0.28432314]
[1747710346283,21.8660622,170.42,170.37,26.0]
[1747710346502,21.8660622,170.42,170.38,17.6]
[1747710347005,27.73357378,170.43,170.38,19.231]
[1747710347191,21.8660622,170.41,170.38,17.6]
[1747710347399,5.86751158,170.43,170.38,17.6]
[1747710347400,21.8660622,170.4,170.38,17.6]
[1747710348817,27.73491259,170.4,170.38,17.6]
[1747710349199,21.8660622,170.39,170.38,17.6]
[1747710349507,5.86885039,170.4,170.38,17.6]
[1747710349714,21.8660622,170.39,170.38,17.6]
[1747710350211,27.73495121,170.39,170.38,17.6]
[1747710351411,27.73495121,170.39,170.36,17.6]
[1747710351614,21.8660622,170.38,170.36,17.6]
[1747710352017,27.73495121,170.39,170.36,17.6]
[1747710354610,5.86888901,170.39,170.36,17.6]
[1747710355518,27.73495121,170.39,170.36,17.6]
[1747710355720,27.73495121,170.39,170.33,1.5715]
[1747710355721,21.8660622,170.37,170.33,1.5715]
[1747710355912,21.8660622,170.36,170.33,43.6]
[1747710356113,5.87061171,170.34,170.33,17.6]
[1747710357211,26.0,170.25,170.21,8.346419]
[1747710357526,21.8660622,170.22,170.21,8.346419]
[1747710358222,27.74081252,170.22,170.21,8.346419]
[1747710359708,5.87475032,170.22,170.21,8.346419]
[1747710362026,5.87440521,170.23,170.21,8.346419]
[1747710363034,21.8660622,170.23,170.21,8.346419]
[1747710364634,5.87475032,170.22,170.21,8.346419]
[1747710366434,5.87440521,170.23,170.21,8.346419]
[1747710367626,5.87406015,170.24,170.21,8.346419]
[1747710370838,21.8660622,170.26,170.21,8.346419]
[1747710371418,21.8660622,170.27,170.21,8.346419]
[1747710372542,21.8660622,170.26,170.21,8.346419]
[1747710373135,5.87371512,170.25,170.21,8.346419]
[1747710375120,5.87337013,170.26,170.21,8.346419]
[1747710375438,27.73943233,170.26,170.21,8.346419]
[1747710375739,13.65274469,170.25,170.21,8.346419]
[1747710375943,5.87337013,170.26,170.21,8.346419]
[1747710376242,5.87337013,170.26,168.62,880.49591755]
[1747710376243,26.0,170.18,170.08,8.346419]
[1747710376537,18.64964886,170.21,170.08,8.346419]
[1747710376538,13.65274469,170.15,170.08,8.346419]
[1747710377148,5.8778581,170.13,170.08,8.346419]
[1747710377542,13.65274469,170.12,170.04,20.98]
[1747710377853,34.22524806,170.13,170.04,20.98]
[1747710378144,34.22524806,170.13,170.07,26.0]
[1747710378440,13.65274469,170.12,170.07,26.0]
[1747710378641,16.2701,170.07,169.96,52.91]
[1747710378825,16.2701,170.07,169.87,18.28851468]
[1747710378826,0.28432314,170.04,169.87,18.28851468]
[1747710379028,0.28432314,170.04,169.89,13.95783881]
[1747710379029,18.64964886,170.01,169.89,13.95783881]
[1747710379226,13.65274469,170.0,169.89,19.84395678]
[1747710379641,20.58581343,170.02,169.9,35.29]
[1747710379841,21.90298567,170.01,169.91,1.5005]
[1747710380026,21.90298567,170.01,169.92,18.933972]
[1747710380228,21.90298567,170.01,169.95,26.0]
[1747710380429,21.90298567,170.0,169.95,26.0]
[1747710381038,27.78516566,170.01,169.95,26.0]
[1747710381239,5.88096918,170.04,169.95,26.0]
[1747710381551,21.90298567,170.02,169.95,26.0]
[1747710382339,5.88027754,170.06,170.0,26.0]
[1747710382546,21.90298567,170.07,170.0,43.62]
[1747710383626,27.78313066,170.07,170.0,43.62]
[1747710383833,21.90298567,170.06,170.0,43.62]
[1747710385334,21.90298567,170.07,170.0,43.62]
[1747710385532,21.90298567,170.08,170.0,49.50221563]
[1747710386429,5.87854917,170.11,170.01,18.933972]
[1747710386653,21.90298567,170.1,170.04,26.0]
[1747710387554,5.87854917,170.11,170.04,26.0]
[1747710387758,21.90298567,170.1,170.05,26.0]
[1747710389151,21.90298567,170.09,170.05,26.0]
[1747710389350,27.78216308,170.1,170.06,26.0]
[1747710389755,5.87917741,170.1,170.06,26.0]
[1747710390256,21.90298567,170.1,170.06,26.0]
[1747710391353,5.87889476,170.1,170.06,26.0]
[1747710392360,5.87860055,170.11,170.07,26.0]
[1747710394163,21.90298567,170.11,170.07,26.0]
[1747710394360,21.90298567,170.11,170.06,26.0]
[1747710395366,27.78182863,170.11,170.06,26.0]
[1747710395859,27.78182863,170.11,170.04,31.88094786]
[1747710396252,5.87884296,170.11,170.04,31.88094786]
[1747710396452,5.87884296,170.11,170.04,26.0]
[1747710396453,21.90298567,170.08,170.04,26.0]
[1747710396652,21.90298567,170.07,170.05,26.0]
[1747710396856,5.87884296,170.11,170.05,26.0]
[1747710397039,21.90298567,170.08,170.05,26.0]
[1747710397239,21.90298567,170.09,170.05,26.0]
[1747710397477,5.87958607,170.08,170.05,26.0]
[1747710397857,5.87958607,170.08,170.02,17.62]
[1747710398365,5.87958607,170.08,170.05,26.0]
[1747710398953,5.87922783,170.1,170.05,26.0]
[1747710399672,27.7822135,170.1,170.05,26.0]
[1747710400966,5.87922783,170.1,170.05,26.0]
[1747710401352,5.87922783,170.1,170.06,26.0]
[1747710403361,21.90298567,170.11,170.05,26.0]
[1747710403753,13.67651629,170.11,170.05,26.0]
[1747710404163,13.67651629,170.12,170.05,26.0]
[1747710404574,5.87854917,170.11,170.05,26.0]
[1747710405472,5.87854917,170.11,170.05,31.88058415]
[1747710406371,5.87823264,170.12,170.05,31.88058415]
[1747710406875,13.67651629,170.13,170.05,31.88058415]
[1747710407567,13.67651629,170.13,170.07,26.0]
[1747710408560,5.87820362,170.12,170.07,26.0]
[1747710410076,19.55471991,170.12,170.07,26.0]
[1747710410854,34.25022896,170.12,170.07,26.0]
[1747710411081,13.67651629,170.1,170.07,26.0]
[1747710411758,20.57371267,170.12,170.07,26.0]
[1747710414984,20.57371267,170.12,170.03,5.88124497]
[1747710414985,34.25022896,170.12,170.05,26.0]
[1747710415882,13.67651629,170.1,170.05,43.62]
[1747710416258,13.67651629,170.1,170.05,26.0]
[1747710416464,13.67651629,170.08,170.03,17.62]
[1747710416973,5.87958607,170.08,170.03,43.62]
[1747710417864,5.87958607,170.08,170.03,26.0]
[1747710418169,5.87958607,170.08,170.04,17.62]
[1747710418386,5.8792404,170.09,170.04,17.62]
[1747710419083,5.87820362,170.12,170.07,26.0]
[1747710419580,13.67651629,170.1,170.05,26.0]
[1747710419766,13.67651629,170.1,170.04,17.62]
[1747710420686,5.8792404,170.09,170.04,17.62]
[1747710421073,5.87820362,170.12,170.07,26.0]
[1747710424088,13.67651629,170.14,170.07,26.0]
[1747710425781,5.87682181,170.16,170.08,26.0]
[1747710425782,5.8342407,170.16,170.08,26.0]
[1747710425986,5.8342407,170.16,170.09,31.87921979]
[1747710426194,5.8342407,170.16,170.09,26.0]
[1747710426399,5.8342407,170.16,170.1,26.0]
[1747710426693,19.51075699,170.16,170.11,17.62]
[1747710426991,5.8342407,170.16,170.11,17.62]
[1747710427798,5.8342407,170.16,170.11,19.2226]
[1747710430200,20.56697942,170.18,170.11,19.2226]
[1747710430504,13.67651629,170.17,170.11,19.2226]
[1747710430687,20.56697942,170.18,170.07,20.72]
[1747710430688,13.67651629,170.13,170.08,43.62]
[1747710431978,13.67651629,170.09,170.02,36.92306116]
[1747710432179,5.87993179,170.07,170.02,30.80146116]
[1747710432386,5.87993179,170.07,170.03,17.62]
[1747710432599,5.87993179,170.07,170.03,43.62]
[1747710434391,13.67651629,170.1,170.03,43.62]
[1747710435098,49.96198392,170.13,170.03,43.62]
[1747710435283,5.8792404,170.09,170.03,43.62]
[1747710437709,5.8778581,170.13,170.06,26.0]
[1747710437892,13.67651629,170.12,170.06,26.0]
[1747710438090,13.67651629,170.11,170.06,26.0]
[1747710438395,13.67651629,170.09,170.03,61.22]
[1747710438594,13.67651629,170.09,170.04,26.0]
[1747710438795,13.67651629,170.1,170.04,26.0]
[1747710439812,49.96179391,170.13,170.04,26.0]
[1747710440007,13.67651629,170.1,170.04,26.0]
[1747710441611,49.96179391,170.13,170.04,26.0]
[1747710441914,13.67651629,170.1,170.04,26.0]
[1747710443516,5.87889476,170.1,170.04,26.0]
[1747710447294,5.87889476,170.1,170.06,26.0]
[1747710448819,5.87889476,170.1,170.07,26.0]
[1747710449019,20.57292185,170.13,170.07,26.0]
[1747710449796,34.24943814,170.13,170.07,26.0]
[1747710450393,13.67651629,170.11,170.07,26.0]
[1747710450703,13.67651629,170.1,170.04,26.0]
[1747710450914,13.67651629,170.1,170.05,26.0]
[1747710451098,13.67651629,170.1,170.05,43.62]
[1747710451298,13.67651629,170.09,170.05,43.62]
[1747710451807,0.6,170.12,170.05,43.62]
[1747710452008,13.67651629,170.1,170.05,43.62]
[1747710452719,5.8792404,170.09,170.05,43.62]
[1747710456627,49.95972434,170.14,170.05,43.62]
[1747710456835,13.67651629,170.11,170.05,43.62]
[1747710457422,13.67651629,170.12,170.05,43.62]
[1747710457628,0.6,170.13,170.05,43.62]
[1747710458029,13.67651629,170.1,170.05,43.62]
[1747710458924,20.5773414,170.09,170.02,45.2557]
[1747710459133,13.67651629,170.08,170.03,43.62]
[1747710460019,13.67651629,170.09,170.03,43.62]
[1747710460430,13.67651629,170.09,170.03,26.0]
[1747710460604,13.67651629,170.09,170.03,43.62]
[1747710461241,34.25506755,170.08,170.02,27.6557]
[1747710461404,34.25506755,170.08,170.03,17.62]
[1747710462523,20.57855126,170.08,170.03,17.62]
[1747710463310,13.67651629,170.09,170.03,17.62]
[1747710464009,0.28432314,170.12,170.03,17.62]
[1747710464010,13.67651629,170.08,170.03,17.62]
[1747710465127,5.87993179,170.07,170.03,17.62]
[1747710466221,14.69871057,170.09,170.03,17.62]
[1747710466222,5.8792404,170.09,170.03,17.62]
[1747710466423,26.0,169.97,169.93,8.42092641]
[1747710466624,58.61048829,169.94,169.93,8.42092641]
[1747710467303,32.32616515,169.94,169.93,8.42092641]
[1747710468228,38.21059494,169.94,169.93,8.42092641]
[1747710468427,19.56094608,169.94,169.93,8.42092641]
[1747710469128,5.88442979,169.94,169.93,8.42092641]
[1747710469546,5.88442979,169.94,169.89,17.62]
[1747710469711,19.56094608,169.94,169.89,17.62]
[1747710475236,5.88442979,169.94,169.89,17.62]
[1747710475419,19.56094608,169.94,169.89,17.62]
[1747710475615,13.67651629,169.92,169.86,26.0]
[1747710475820,13.67651629,169.91,169.86,43.64]
[1747710476127,13.67651629,169.9,169.86,17.64]
[1747710476443,13.67651629,169.91,169.86,43.64]
[1747710476831,5.88581518,169.9,169.86,43.64]
[1747710477139,19.56233147,169.9,169.86,43.64]
[1747710478838,13.67651629,169.91,169.86,43.64]
[1747710479139,20.59550428,169.94,169.86,43.64]
[1747710479140,13.67651629,169.92,169.86,43.64]
[1747710479342,13.67651629,169.91,169.86,43.64]
[1747710479726,13.67651629,169.91,169.86,25.95741888]
[1747710480743,5.88581518,169.9,169.86,25.95741888]
[1747710480921,5.88581518,169.9,169.87,17.64]
[1747710481121,5.88553846,169.91,169.87,17.64]
[1747710483423,19.56205475,169.91,169.87,17.64]
[1747710484839,19.56205475,169.91,169.86,43.59741888]
[1747710485046,13.67651629,169.88,169.85,17.64]
[1747710485726,13.67651629,169.88,169.83,26.0]
[1747710485923,13.67651629,169.88,169.83,43.64]
[1747710486652,13.67651629,169.88,169.83,26.0]
[1747710486955,13.67651629,169.88,169.83,43.64]
[1747710487260,19.56337094,169.87,169.83,43.64]
[1747710487437,5.88685465,169.87,169.83,43.64]
[1747710489433,5.85813645,169.87,169.83,43.64]
[1747710489650,13.67651629,169.85,169.8,26.0]
[1747710490149,13.67651629,169.86,169.8,26.0]
[1747710490737,20.57527308,169.87,169.82,26.0]
[1747710490941,5.85813645,169.87,169.82,26.0]
[1747710491345,19.82921629,169.89,169.82,26.0]
[1747710491346,19.56302441,169.88,169.82,26.0]
[1747710491736,20.16302441,169.88,169.82,26.0]
[1747710493644,13.67651629,169.87,169.82,26.0]
[1747710493849,13.67651629,169.85,169.82,26.0]
[1747710494551,13.67651629,169.86,169.82,26.0]
[1747710494947,5.88754783,169.85,169.82,26.0]
[1747710495355,5.88754783,169.85,169.79,43.64]
[1747710495653,20.60641742,169.85,169.79,43.64]
[1747710497056,14.71886959,169.85,169.79,43.64]
[1747710498233,18.64964886,169.89,169.79,43.64]
[1747710498438,18.64964886,169.89,169.79,17.64]
[1747710498439,13.67651629,169.86,169.79,17.64]
[1747710498829,13.67651629,169.85,169.78,27.6359]
[1747710499033,13.67651629,169.84,169.78,17.64]
[1747710499448,13.67651629,169.85,169.78,17.64]
[1747710499646,13.67651629,169.86,169.78,17.64]
[1747710500338,34.28293371,169.85,169.78,17.64]
[1747710500653,20.60641742,169.85,169.78,17.64]
[1747710501762,14.71886959,169.85,169.78,17.64]
[1747710502346,14.71886959,169.85,169.78,43.64]
[1747710503948,20.60641742,169.85,169.78,43.64]
[1747710504451,20.60641742,169.85,169.81,26.0]
[1747710504635,5.88754783,169.85,169.81,26.0]
[1747710506044,20.60326159,169.88,169.81,26.0]
[1747710506639,0.6,169.87,169.81,26.0]
[1747710508158,5.88720122,169.86,169.81,26.0]
[1747710508456,20.60520428,169.86,169.81,26.0]
[1747710510039,34.28172057,169.86,169.78,17.66]
[1747710511442,13.67651629,169.85,169.78,17.66]
[1747710511643,13.67651629,169.84,169.77,17.66]
[1747710512247,14.71886959,169.85,169.77,17.66]
[1747710514689,18.64964886,169.84,169.74,1.5056]
[1747710514854,13.67651629,169.83,169.75,17.66]
[1747710515054,32.32616515,169.84,169.75,17.66]
[1747710515256,13.67651629,169.83,169.75,17.66]
[1747710515457,18.64964886,169.84,169.75,17.66]
[1747710515784,13.67651629,169.83,169.75,17.66]
[1747710516169,13.67651629,169.82,169.75,17.66]
[1747710516857,20.61127141,169.81,169.75,17.66]
[1747710517257,20.61127141,169.81,169.74,19.1656]
[1747710517868,14.72233672,169.81,169.74,19.1656]
[1747710518170,14.72233672,169.81,169.74,45.1656]
[1747710522697,20.61127141,169.81,169.74,45.1656]
[1747710524776,14.72233672,169.81,169.74,45.1656]
[1747710526287,68.69380546,169.85,169.74,45.1656]
[1747710526465,13.67651629,169.8,169.73,26.0]
[1747710526666,13.67651629,169.79,169.71,43.66]
[1747710527867,13.67651629,169.79,169.71,26.0]
[1747710528196,93.15841207,169.85,169.72,17.66]
[1747710528973,93.15841207,169.85,169.72,23.55204686]
[1747710531098,93.15841207,169.85,169.72,17.66]
[1747710531795,0.6,169.84,169.72,23.55203757]